bitfinex-derivatives/quotes_ETHF0:USTF0_20250520
["timestamp","ask_amount","ask_price","bid_price","bid_amount"]
[1747749682169,0.80811,2474.0,2473.9,0.80812]
[1747749682357,2.9180173,2474.1,2473.7,2.89607]
[1747749682358,0.80816,2473.8,2473.7,2.89607]
[1747749682565,0.80816,2473.8,2473.7,12.58507]
[1747749682758,0.80816,2473.8,2473.7,13.798125]
[1747749683970,0.80816,2473.8,2473.7,14.606315]
[1747749684471,0.80816,2473.8,2473.7,13.798125]
[1747749685173,1.6542773,2473.8,2473.7,2.0879]
[1747749686769,1.6542773,2473.8,2473.7,2.89609]
[1747749686974,0.80816,2473.8,2473.7,4.917315]
[1747749687174,1.6542773,2473.8,2473.7,4.917315]
[1747749687368,0.80815,2473.9,2473.8,0.80816]
[1747749687568,0.80815,2473.9,2473.8,1.9938]
[1747749687774,1.6542673,2473.9,2473.8,1.9938]
[1747749689483,0.80822,2473.6,2473.5,9.689]
[1747749689781,0.80822,2473.6,2473.5,10.49725]
[1747749689983,1.6543373,2473.6,2473.5,10.49725]
[1747749690278,0.80822,2473.6,2473.5,10.49725]
[1747749690480,1.6543373,2473.6,2473.5,10.49725]
[1747749690685,0.80822,2473.6,2473.5,9.689]
[1747749690883,1.6543373,2473.6,2473.5,12.20433721]
[1747749691078,0.80822,2473.6,2473.5,2.51533721]
[1747749691278,1.6543373,2473.6,2473.5,2.51533721]
[1747749691580,0.80822,2473.6,2473.5,3.32358721]
[1747749691777,1.6543373,2473.6,2473.5,2.51533721]
[1747749691977,0.80822,2473.6,2473.5,2.51533721]
[1747749692175,3.8439373,2473.6,2473.5,0.32333721]
[1747749693692,0.80839,2473.1,2473.0,0.42931702]
[1747749693999,1.6545073,2473.1,2473.0,0.28838807]
[1747749694579,3.7805073,2473.1,2473.0,0.28838807]
[1747749695886,0.80845,2472.9,2472.8,3.2078]
[1747749696183,0.80855,2472.6,2472.5,0.42931702]
[1747749696386,4.8624673,2472.6,2472.5,7.02e-06]
[1747749696588,0.80861,2472.4,2472.3,1.3078]
[1747749696790,0.80865,2472.3,2471.9,0.71633637]
[1747749696992,6.9040673,2472.3,2471.9,0.71633637]
[1747749697289,0.80875,2472.0,2471.9,0.71633637]
[1747749697490,4.0539173,2472.0,2471.9,1.52511637]
[1747749697678,3.2078,2472.0,2471.9,5.55291136]
[1747749697880,4.0286,2472.2,2471.9,4.83657499]
[1747749698085,1.6548673,2472.0,2471.9,2.0051]
[1747749698287,0.8461173,2472.0,2471.9,2.0051]
[1747749698583,0.80875,2472.0,2471.9,4.02779499]
[1747749698887,1.6548673,2472.0,2471.9,4.83655499]
[1747749699394,0.80881,2471.8,2471.7,2.11693]
[1747749699581,4.0539173,2472.0,2471.7,2.11693]
[1747749699582,3.8161173,2471.9,2471.8,0.80881]
[1747749699780,3.2078,2472.0,2471.6,2.0263]
[1747749699781,0.80877,2472.0,2471.9,0.80878]
[1747749699982,6.1898,2472.2,2472.1,0.80871]
[1747749700179,6.99848,2472.2,2472.1,0.80871]
[1747749700379,0.80873,2472.1,2472.0,0.80873]
[1747749700589,3.2078,2472.6,2472.2,0.80868]
[1747749700788,6.03988,2472.9,2472.8,0.80848]
[1747749701089,2.1672573,2473.1,2472.7,2.02129]
[1747749701289,0.0060573,2473.1,2473.0,0.80842]
[1747749701590,0.0060573,2473.1,2473.0,12.48672]
[1747749701788,0.8521746,2473.1,2473.0,17.48672]
[1747749701988,0.0060573,2473.1,2473.0,17.48672]
[1747749702887,0.8521746,2473.1,2473.0,17.48672]
[1747749703088,0.8521746,2473.1,2473.0,12.48672]
[1747749703395,1.6605646,2473.1,2473.0,11.6773]
[1747749703700,0.80846,2472.9,2472.8,10.45948]
[1747749703900,1.6545773,2472.9,2472.8,10.45948]
[1747749704197,4.1735,2473.0,2472.9,0.80845]
[1747749704397,2.1307573,2473.1,2473.0,0.80842]
[1747749704604,0.0060573,2473.1,2473.0,0.80842]
[1747749705288,0.8521746,2473.1,2472.3,40.755]
[1747749705584,4.0539173,2472.9,2472.8,0.80848]
[1747749705787,3.2078,2472.9,2472.5,7.2506]
[1747749705988,0.8461173,2472.8,2472.7,0.80851]
[1747749706192,2.1443,2472.8,2472.5,8.05918]
[1747749706392,4.8624673,2472.6,2472.5,1.9878]
[1747749706695,4.8624673,2472.6,2472.3,50.406]
[1747749706696,0.80859,2472.5,2472.4,0.80859]
[1747749706897,0.80859,2472.5,2472.4,1.9878]
[1747749707093,1.6547073,2472.5,2472.4,1.9878]
[1747749707289,3.7990073,2472.5,2472.4,1.9878]
[1747749707990,0.80861,2472.4,2472.3,9.651]
[1747749708191,0.80861,2472.4,2472.3,10.45965]
[1747749708192,3.7389273,2472.4,2472.3,10.45965]
[1747749708594,3.7389273,2472.4,2472.3,9.651]
[1747749709195,3.7389273,2472.4,2472.3,10.45965]
[1747749709395,3.7389273,2472.4,2472.3,13.66706499]
[1747749709396,0.8461173,2472.4,2472.3,13.66706499]
[1747749709592,0.80858,2472.5,2472.4,0.8086]
[1747749709796,0.80858,2472.5,2472.4,2.8023]
[1747749710090,0.8461173,2472.5,2472.4,6.9937]
[1747749710289,2.02082,2473.3,2472.5,2.02146]
[1747749710489,2.0842,2473.2,2473.0,0.80842]
[1747749710693,5.22847,2473.5,2473.0,0.80842]
[1747749710989,1.6605846,2473.1,2473.0,0.80842]
[1747749711193,0.80842,2473.0,2472.9,2.80213]
[1747749711503,1.6545373,2473.0,2472.9,1.9937]
[1747749711692,3.6859373,2473.0,2472.9,3.12565799]
[1747749712000,3.6859373,2473.0,2472.9,2.31720799]
[1747749712300,3.6859373,2473.0,2472.9,3.12565799]
[1747749712695,1.6545373,2473.0,2472.9,3.12565799]
[1747749712897,1.6545373,2473.0,2472.9,2.31720799]
[1747749713096,3.6859373,2473.0,2472.9,0.32350799]
[1747749713394,7.7905373,2473.0,2472.9,0.32350799]
[1747749714997,0.80858,2472.5,2472.4,2.0141]
[1747749715296,0.80861,2472.4,2472.3,10.46063]
[1747749715600,0.80861,2472.4,2472.3,12.47473]
[1747749715601,1.6547273,2472.4,2472.3,12.47473]
[1747749715797,0.8461173,2472.4,2472.3,13.68846499]
[1747749715998,0.80857,2472.6,2472.5,0.80858]
[1747749716403,1.6546773,2472.6,2472.5,0.80855]
[1747749716798,0.80861,2472.5,2472.4,0.8086]
[1747749717001,0.80861,2472.4,2472.3,12.47474]
[1747749717201,1.6547273,2472.4,2472.3,12.47474]
[1747749717506,2.88861,2472.5,2472.4,0.80861]
[1747749717704,2.88861,2472.5,2472.4,2.89601]
[1747749718007,3.7347273,2472.5,2472.4,2.89601]
[1747749718700,0.80861,2472.4,2472.3,0.80863]
[1747749719004,0.80871,2472.2,2472.1,10.46069]
[1747749719306,1.6548273,2472.2,2472.1,10.46069]
[1747749719499,5.08547,2472.3,2472.2,0.80868]
[1747749719700,5.08547,2472.3,2472.2,2.89608]
[1747749719902,5.9315873,2472.3,2472.2,2.89608]
[1747749720202,2.02122,2472.8,2472.2,2.0874]
[1747749720397,0.8461173,2472.3,2472.2,5.04548]
[1747749720704,0.80856,2472.6,2472.5,0.80858]
[1747749721205,0.80863,2472.5,2472.4,0.80859]
[1747749721403,0.80861,2472.4,2472.3,2.87513]
[1747749721900,1.6547273,2472.4,2472.3,2.87513]
[1747749722101,0.80861,2472.4,2472.3,2.87513]
[1747749722400,0.80859,2472.5,2472.4,0.80861]
[1747749722602,0.80852,2472.8,2472.7,0.80848]
[1747749722998,1.6546373,2472.8,2472.7,0.80848]
[1747749723396,0.80852,2472.8,2472.7,0.80848]
[1747749723705,1.6546373,2472.8,2472.7,0.80848]
[1747749724399,0.80852,2472.7,2472.6,2.0665]
[1747749724594,0.80855,2472.6,2472.5,0.28877901]
[1747749724799,0.80861,2472.4,2472.3,0.43248489]
[1747749725002,0.80871,2472.1,2472.0,3.2078]
[1747749725304,1.6548273,2472.1,2472.0,3.2078]
[1747749726508,0.8461173,2472.1,2472.0,6.039165]
[1747749726709,0.8461173,2472.1,2472.0,8.182465]
[1747749727606,0.8461173,2472.1,2472.0,8.50596909]
[1747749728005,0.80857,2472.6,2472.5,0.80854]
[1747749728203,2.02118,2472.9,2472.5,0.80856]
[1747749728393,0.80858,2472.6,2472.5,2.85836]
[1747749728594,0.80858,2472.6,2472.5,2.0498]
[1747749728805,0.80858,2472.6,2472.5,4.072005]
[1747749729002,0.80858,2472.5,2472.4,10.9207]
[1747749729303,0.0060573,2473.1,2473.0,0.80842]
[1747749729609,0.0060573,2473.1,2473.0,13.62922]
[1747749729904,0.0060573,2473.1,2473.0,15.651015]
[1747749730212,1.80064687,2474.0,2473.3,2.02081]
[1747749730508,6.56086939,2474.3,2473.0,23.884675]
[1747749730509,2.0561,2474.1,2473.9,0.8081]
[1747749730699,2.86418,2474.1,2474.0,2.0826]
[1747749731099,0.80808,2474.1,2474.0,4.10358]
[1747749731305,2.115,2474.2,2474.0,4.10358]
[1747749731505,0.0060573,2474.3,2474.2,0.80803]
[1747749731809,7.3e-06,2474.3,2474.2,5.80803]
[1747749732105,7.3e-06,2474.3,2474.2,12.053245]
[1747749732301,7.3e-06,2474.3,2474.2,16.664245]
[1747749732605,7.3e-06,2474.3,2474.2,14.522445]
[1747749732811,0.8079973,2474.3,2474.2,13.714415]
[1747749733107,7.3e-06,2474.3,2474.2,14.522445]
[1747749735111,7.3e-06,2474.3,2474.2,19.522445]
[1747749735306,7.3e-06,2474.3,2474.2,21.545945]
[1747749737406,2.3494512,2475.9,2475.0,2.01942]
[1747749737407,4.04152,2475.9,2475.0,2.01942]
[1747749737706,0.8077,2475.2,2475.1,15.0031]
[1747749737901,0.8077,2475.2,2475.1,13.81538]
[1747749738308,0.80783,2474.9,2474.7,4.01564]
[1747749738612,0.80783,2474.9,2474.2,4.04351]
[1747749738613,0.80788,2474.7,2474.6,0.0060573]
[1747749739110,2.82837,2474.7,2474.6,0.0060573]
[1747749739501,5.01487,2474.7,2474.6,0.0060573]
[1747749739904,5.01485,2474.7,2474.6,0.0060573]
[1747749740103,2.0819,2474.8,2474.6,0.0060573]
[1747749740410,2.0819,2474.8,2474.7,0.80786]
[1747749740913,2.0819,2474.8,2474.7,2.828265]
[1747749741408,4.0216373,2475.0,2474.9,0.8078]
[1747749741602,0.0060573,2475.0,2474.9,10.4138]
[1747749741803,0.0060573,2475.0,2474.9,12.434045]
[1747749742711,0.80786,2474.7,2474.6,0.0060573]
[1747749742908,0.80784,2474.8,2474.7,0.80784]
[1747749743109,0.80786,2474.7,2474.6,2.0187573]
[1747749743409,0.80786,2474.7,2474.6,0.8139573]
[1747749743606,2.82835,2474.7,2474.6,0.8139573]
[1747749743813,2.02049,2474.7,2474.6,0.8139573]
[1747749744108,3.2138573,2475.0,2474.9,0.8078]
[1747749744309,6.0418723,2475.0,2474.9,9.606]
[1747749744500,0.8078,2474.9,2474.8,0.80781]
[1747749744697,0.80786,2474.7,2474.6,0.0060573]
[1747749744902,0.80786,2474.8,2474.6,9.6110573]
[1747749745110,3.2138573,2475.0,2474.6,12.8188573]
[1747749745314,0.80783,2474.8,2474.7,2.1281]
[1747749745505,0.80786,2474.7,2474.6,9.6110573]
[1747749745702,2.81626,2474.7,2474.6,12.4394023]
[1747749746310,2.0084,2474.7,2474.6,12.43944729]
[1747749746610,2.81626,2474.7,2474.6,10.4189573]
[1747749746903,3.2138573,2475.0,2474.9,0.8078]
[1747749747508,4.0216273,2475.0,2474.9,2.828045]
[1747749747705,0.0060573,2475.0,2474.9,2.828045]
[1747749748308,4.01538,2475.6,2475.5,0.8076]
[1747749748613,0.80763,2475.5,2475.4,0.80761]
[1747749748808,0.80763,2475.5,2475.3,9.605]
[1747749748809,0.80763,2475.4,2475.3,10.41266]
[1747749749213,0.80763,2475.4,2475.3,11.624915]
[1747749749407,0.80763,2475.4,2475.3,9.605]
[1747749749814,2.827545,2475.4,2475.3,9.605]
[1747749750008,4.971845,2475.4,2475.3,9.605]
[1747749751210,0.80773,2475.1,2475.0,2.93325]
[1747749751509,0.80772,2475.2,2475.1,0.8077]
[1747749751907,2.02008,2475.2,2474.6,2.0257673]
[1747749752108,0.80782,2475.0,2474.9,0.80776]
[1747749752313,5.15245,2475.1,2475.0,0.80777]
[1747749752614,4.3447,2475.1,2475.0,0.80777]
[1747749752818,4.3447,2475.1,2475.0,2.82792999]
[1747749753009,0.80771,2475.2,2475.0,2.82792999]
[1747749753010,0.80769,2475.3,2475.2,0.8077]
[1747749753317,0.80769,2475.3,2475.2,10.4117]
[1747749753514,0.80769,2475.3,2475.2,12.4317]
[1747749753717,2.96449,2475.3,2475.2,12.4317]
[1747749754016,2.1568,2475.3,2475.2,12.4317]
[1747749754217,2.96447,2475.3,2475.2,12.4317]
[1747749754418,2.96447,2475.3,2475.2,10.4117]
[1747749754917,2.1568,2475.3,2475.2,10.4117]
[1747749755117,5.2327973,2475.6,2475.2,10.4117]
[1747749755118,4.0214473,2475.6,2475.5,0.8076]
[1747749755318,3.2138573,2475.6,2475.5,0.8076]
[1747749755518,0.0060573,2475.6,2475.5,6.035155]
[1747749755812,0.8136273,2475.6,2475.5,6.035155]
[1747749756017,0.8136273,2475.6,2475.5,4.0154]
[1747749757217,0.8136273,2475.6,2475.5,0.8076]
[1747749757416,0.0060573,2475.6,2475.5,0.8076]
[1747749757618,0.0060573,2475.6,2475.5,2.827355]
[1747749757812,0.0060573,2475.6,2475.5,0.8076]
[1747749758119,0.0060573,2475.6,2475.5,6.035155]
[1747749760424,0.8136273,2475.6,2475.5,6.035155]
[1747749760625,0.0060573,2475.6,2475.5,6.035155]
[1747749760920,2.1735573,2475.6,2475.5,6.035155]
[1747749761121,2.1735573,2475.6,2475.5,6.034155]
[1747749761319,2.9811273,2475.6,2475.5,5.227555]
[1747749761524,0.8077,2475.2,2475.1,10.8693]
[1747749761820,0.8077,2475.2,2475.1,11.67703]
[1747749762014,0.8077,2475.2,2475.1,12.88938]
[1747749762209,0.8077,2475.2,2475.1,12.88838]
[1747749762423,2.9752,2475.2,2475.1,12.39081]
[1747749762620,2.1675,2475.2,2475.1,12.39081]
[1747749762820,2.9752,2475.2,2475.1,12.38981]
[1747749763120,2.9752,2475.2,2475.1,12.39081]
[1747749763321,2.9752,2475.2,2475.1,12.38981]
[1747749763521,0.80777,2475.0,2474.9,2.0323]
[1747749763721,0.80886,2474.8,2474.7,9.563]
[1747749763920,0.001,2474.8,2474.7,10.37086]
[1747749764228,0.80771,2475.2,2475.1,0.8077]
[1747749764517,0.80871,2475.2,2475.1,9.563]
[1747749764716,2.031,2475.2,2475.1,10.37073]
[1747749764914,2.0618,2475.3,2475.2,0.8077]
[1747749765216,0.8136573,2475.6,2475.5,0.8066]
[1747749765618,0.0060573,2475.6,2475.5,12.390355]
[1747749766225,0.8076,2475.5,2475.4,3.2078]
[1747749766417,2.9031,2475.5,2475.4,3.2078]
[1747749766617,2.9031,2475.5,2475.4,13.57943]
[1747749766820,2.9031,2475.5,2475.4,12.7718]
[1747749767821,2.9031,2475.5,2475.4,13.57943]
[1747749768017,2.01912,2475.4,2475.0,9.564]
[1747749768219,0.80773,2475.1,2475.0,9.564]
[1747749768418,0.80873,2475.1,2475.0,10.37177]
[1747749768619,0.80873,2475.1,2475.0,9.564]
[1747749768821,2.76793,2475.1,2475.0,9.564]
[1747749769223,1.9602,2475.1,2475.0,9.564]
[1747749769426,0.001,2475.1,2475.0,10.37177]
[1747749769923,0.001,2475.1,2475.0,10.67652993]
[1747749770130,0.80873,2475.1,2475.0,10.67552993]
[1747749770331,0.80873,2475.1,2475.0,10.80192597]
[1747749771119,0.80873,2475.1,2475.0,10.80191597]
[1747749771424,2.76793,2475.1,2475.0,10.80207348]
[1747749771725,2.76693,2475.1,2475.0,10.80207348]
[1747749772027,2.76793,2475.1,2475.0,9.99431348]
[1747749772225,5.15344467,2475.1,2475.0,9.99431348]
[1747749772422,5.15344467,2475.1,2475.0,9.99531348]
[1747749773131,5.15344467,2475.1,2475.0,9.99532342]
[1747749773331,5.15344467,2475.1,2475.0,0.4313293]
[1747749774130,10.15344467,2475.1,2475.0,0.4313293]
[1747749774323,10.15344467,2475.1,2475.0,0.75463406]
[1747749774527,7.76793,2475.1,2475.0,0.7546239]
[1747749774927,7.76793,2475.1,2475.0,8e-07]
[1747749775126,0.80786,2474.7,2474.6,0.0060573]
[1747749775319,4.01566,2474.7,2474.6,0.0060573]
[1747749775532,11.03615,2474.7,2474.6,0.0060573]
[1747749775831,0.80793,2474.5,2474.4,0.5776199]
[1747749776027,0.80793,2474.5,2474.4,0.88225904]
[1747749776221,2.82858,2474.5,2474.4,0.5776199]
[1747749776422,4.83168,2474.5,2474.4,0.5776199]
[1747749776723,0.80806,2474.1,2474.0,12.7718]
[1747749776926,0.80806,2474.1,2474.0,9.86844809]
[1747749777128,2.02098,2474.1,2474.0,10.67653809]
[1747749777329,2.82904,2474.1,2474.0,10.67653809]
[1747749777625,2.82904,2474.1,2474.0,9.86844809]
[1747749778729,6.03684,2474.1,2474.0,0.30444809]
[1747749779425,6.03684,2474.1,2474.0,3.24893809]
[1747749779737,6.03684,2474.1,2474.0,2.44084809]
[1747749779931,0.80809,2474.0,2473.9,9.565]
[1747749780132,2.92009,2474.0,2473.9,12.00532205]
[1747749780325,4.94115,2474.0,2473.9,12.00532205]
[1747749780528,4.01589,2474.1,2474.0,0.80809]
[1747749780728,4.01589,2474.1,2474.0,3.24841205]
[1747749780925,6.03687,2474.1,2474.0,2.44032205]
[1747749781132,0.80809,2474.0,2473.9,9.565]
[1747749781329,5.07139,2474.0,2473.9,9.86885382]
[1747749781632,7.09245,2474.0,2473.9,9.86885382]
[1747749781833,0.80809,2474.0,2473.9,9.86885382]
[1747749782030,2.1229,2474.2,2474.1,0.80806]
[1747749782233,0.0060573,2474.3,2474.2,0.80803]
[1747749782536,0.0060573,2474.3,2474.2,5.16204315]
[1747749782734,0.99254687,2475.0,2474.9,0.8078]
[1747749783034,0.99254687,2475.0,2474.9,1.11142925]
[1747749783221,0.80774,2475.1,2475.0,0.80777]
[1747749783424,2.82794,2475.1,2475.0,3.18929925]
[1747749783628,2.82794,2475.1,2475.0,2.38152925]
[1747749783932,4.81434,2475.1,2475.0,3.18929925]
[1747749784130,2.0202,2475.1,2475.0,3.18929925]
[1747749784333,2.0202,2475.1,2475.0,3.18925328]
[1747749784530,0.0060573,2475.3,2475.2,0.8077]
[1747749784835,0.0060573,2475.3,2475.2,10.67728328]
[1747749785037,0.0060573,2475.3,2475.2,12.69728328]
[1747749786239,0.80749,2475.9,2475.2,18.90877328]
[1747749786434,3.2078,2476.2,2475.7,3.2078]
[1747749786632,3.2078,2476.2,2476.1,0.80741]
[1747749786831,3.2078,2476.3,2476.1,1.11090852]
[1747749787137,0.80734,2476.3,2476.2,2.0135]
[1747749787329,1.9924573,2476.4,2476.2,2.94705393]
[1747749787639,2.7997773,2476.4,2476.2,2.0135]
[1747749787935,0.0060573,2476.4,2476.3,3.25039944]
[1747749788137,0.0060573,2476.4,2476.3,6.45819944]
[1747749788328,1.00245205,2476.6,2476.5,0.80728]
[1747749788524,1.00245205,2476.6,2476.5,1.23683944]
[1747749788742,1.00245205,2476.6,2476.5,3.25577943]
[1747749788929,1.00245205,2476.6,2476.5,8.25577943]
[1747749789326,1.00245205,2476.6,2476.5,3.25551231]
[1747749789533,1.80969205,2476.6,2476.5,11.96823231]
[1747749790041,1.80969205,2476.6,2476.5,12.77551231]
[1747749790337,0.80724,2476.6,2476.5,13.098547]
[1747749790538,0.80724,2476.6,2476.5,3.578547]
[1747749790849,7.01894,2476.6,2476.5,0.44921453]
[1747749791034,0.80741,2476.1,2476.0,0.0060573]
[1747749791643,3.2078,2476.3,2476.2,0.80737]
[1747749791937,5.2517,2476.6,2476.2,9.52]
[1747749792138,0.80733,2476.4,2476.3,2.1431]
[1747749792643,2.82641,2476.4,2476.3,2.1431]
[1747749792841,0.80731,2476.4,2476.3,4.96954]
[1747749793243,2.82641,2476.4,2476.3,2.1431]
[1747749793737,0.80736,2476.3,2476.2,0.80734]
[1747749793935,2.82643,2476.4,2476.3,0.80734]
[1747749794140,2.0439,2476.6,2476.1,9.52]
[1747749794342,0.80735,2476.3,2476.2,0.80734]
[1747749794640,0.0060573,2476.8,2476.2,0.80734]
[1747749794641,0.0060573,2476.8,2476.2,3.2078]
[1747749794829,0.0060573,2476.8,2476.7,4.01501]
[1747749795140,0.0060573,2476.8,2476.7,15.553785]
[1747749795341,0.0060573,2476.8,2476.7,15.552785]
[1747749796341,0.8132373,2476.8,2476.7,15.552785]
[1747749796934,0.0060573,2476.8,2476.7,15.552785]
[1747749797234,0.80724,2476.6,2476.5,3.3274]
[1747749797429,0.80724,2476.6,2476.5,11.5417]
[1747749797835,0.80723,2476.7,2476.6,0.80724]
[1747749798243,0.80723,2476.7,2476.6,2.826095]
[1747749798941,0.0060573,2476.8,2476.7,0.80721]
[1747749798942,0.8132673,2476.8,2476.7,0.80721]
[1747749799143,0.0060573,2476.8,2476.7,2.81681]
[1747749799440,3.2078,2477.8,2476.8,2.01795]
[1747749799633,0.80684,2477.9,2477.8,0.80683]
[1747749799833,0.80685,2477.8,2477.7,9.518]
[1747749800235,2.82481,2477.8,2477.7,9.518]
[1747749800634,0.80692,2477.6,2477.5,0.0060573]
[1747749800838,0.80721,2476.7,2476.6,2.097]
[1747749801043,0.80721,2476.7,2476.6,12.42224]
[1747749801245,5.22553,2477.1,2476.6,13.633855]
[1747749801436,0.8072,2476.8,2476.7,0.80718]
[1747749801839,0.8072,2476.8,2476.7,2.825955]
[1747749802036,3.2078,2477.1,2477.0,0.80711]
[1747749802241,3.2078,2477.1,2477.0,10.32411]
[1747749802444,4.01488,2477.1,2477.0,10.32411]
[1747749803047,3.2078,2477.1,2477.0,10.32411]
[1747749803249,3.2078,2477.1,2477.0,12.46877368]
[1747749803546,0.80692,2477.7,2477.6,0.80689]
[1747749803850,0.80695,2477.5,2477.4,9.517]
[1747749804049,0.80695,2477.5,2477.4,9.64313368]
[1747749804448,0.80695,2477.5,2477.4,11.86113368]
[1747749804664,0.80695,2477.5,2477.4,13.87933868]
[1747749805153,2.825155,2477.5,2477.4,9.64213368]
[1747749805449,0.80705,2477.2,2477.1,2.1516]
[1747749805647,2.1573,2477.4,2477.3,0.80702]
[1747749805947,0.00399712,2478.0,2477.6,2.0173]
[1747749806152,0.00399712,2478.0,2477.9,0.80682]
[1747749806344,7.12e-06,2478.0,2477.9,4.01462]
[1747749806537,0.80654,2478.8,2478.2,2.01675]
[1747749806747,5.3682,2478.9,2478.3,15.00152014]
[1747749806942,2.1573,2478.7,2478.4,0.12612014]
[1747749807148,0.80662,2478.5,2478.4,9.64212014]
[1747749807742,2.96392,2478.5,2478.4,10.44878014]
[1747749808436,2.96392,2478.5,2478.4,9.64212014]
[1747749808842,2.96392,2478.5,2478.4,2.25722014]
[1747749809042,2.96392,2478.5,2478.4,11.77122014]
[1747749809444,2.96392,2478.5,2478.4,12.57788014]
[1747749809640,2.96392,2478.5,2478.4,11.77122014]
[1747749809840,9.98131,2478.5,2478.4,0.12612014]
[1747749810138,14.93171,2478.5,2478.4,0.12612014]
[1747749810340,14.93171,2478.5,2478.2,0.0060573]
[1747749810341,0.80669,2478.3,2478.2,0.0060573]
[1747749810537,4.01449,2478.3,2478.2,0.0060573]
[1747749810745,6.032045,2478.3,2478.2,0.0060573]
[1747749810943,6.032045,2478.3,2478.2,0.13213958]
[1747749811144,6.032045,2478.3,2478.2,2.26323958]
[1747749811654,2.824245,2478.3,2478.2,0.13213958]
[1747749811952,6.032045,2478.3,2478.2,0.13213958]
[1747749812152,4.01449,2478.3,2478.2,0.13213958]
[1747749812355,0.80669,2478.3,2478.2,2.95641458]
[1747749812649,0.80669,2478.3,2478.2,2.14969458]
[1747749812853,6.032045,2478.3,2478.2,0.13213958]
[1747749813038,0.80679,2478.0,2477.9,1.3039]
[1747749813245,0.80692,2477.6,2477.5,50.206]
[1747749813552,0.80695,2477.5,2477.4,0.28540263]
[1747749813754,3.02455,2477.5,2477.4,0.28540263]
[1747749814046,5.042755,2477.5,2477.4,0.28540263]
[1747749814254,3.2078,2477.7,2477.6,0.80692]
[1747749814652,0.80692,2477.6,2477.5,2.2004]
[1747749814851,2.1277,2477.6,2477.3,9.512]
[1747749815050,3.2078,2477.7,2477.6,0.80692]
[1747749815254,2.94271,2478.0,2477.5,2.01734]
[1747749815459,4.01456,2478.1,2478.0,0.80679]
[1747749815849,4.01456,2478.1,2477.9,9.512]
[1747749815850,0.80679,2478.0,2477.9,9.512]
[1747749816154,0.80679,2478.0,2477.9,14.82980235]
[1747749816356,0.80679,2478.0,2477.9,14.537015]
[1747749816552,0.80679,2478.0,2477.9,14.82993304]
[1747749816756,0.80679,2478.0,2477.9,14.02311304]
[1747749817053,0.80679,2478.0,2477.9,14.82993304]
[1747749817259,0.80679,2478.0,2477.9,14.02311304]
[1747749817456,0.80679,2478.0,2477.9,12.81213804]
[1747749817757,0.80679,2478.0,2477.9,15.15271432]
[1747749818052,0.80679,2478.0,2477.9,14.05297628]
[1747749818254,0.80679,2478.0,2477.9,15.15278489]
[1747749818451,2.1277,2478.2,2477.9,15.15278489]
[1747749818657,5.3437,2478.4,2478.1,2.01689]
[1747749818850,5.3437,2478.4,2478.3,0.80669]
[1747749818851,6.15037,2478.4,2478.3,0.80669]
[1747749819057,4.01447,2478.4,2478.3,10.27969]
[1747749819259,4.01447,2478.4,2478.3,9.473]
[1747749819260,6.03194001,2478.4,2478.3,9.473]
[1747749819667,6.03194001,2478.4,2478.3,11.5158]
[1747749820157,0.80682,2478.0,2477.6,7.40179]
[1747749820353,0.80682,2478.0,2477.9,0.80679]
[1747749820656,0.80682,2478.0,2477.9,3.11752987]
[1747749821059,0.80677,2478.1,2478.0,0.80675]
[1747749821358,0.80677,2478.1,2477.7,9.75740263]
[1747749821359,0.80685,2477.8,2477.7,9.75740263]
[1747749821549,4.01465,2477.8,2477.7,10.05053011]
[1747749821751,6.03261,2477.8,2477.7,10.05053011]
[1747749822064,3.2078,2478.2,2477.7,15.27634465]
[1747749822249,4.01454,2478.2,2478.1,0.80676]
[1747749822451,0.80679,2478.1,2478.0,0.80676]
[1747749822648,0.80679,2478.1,2478.0,1.10007894]
[1747749822850,4.01452,2478.2,2478.1,0.80676]
[1747749823058,4.01452,2478.2,2478.1,3.31117894]
[1747749823263,6.032155,2478.2,2478.1,12.7841578]
[1747749823465,4.01452,2478.2,2478.1,12.7841578]
[1747749823761,4.01452,2478.2,2478.1,11.9773978]
[1747749823965,0.80672,2478.2,2478.1,12.7841578]
[1747749824464,0.80672,2478.2,2478.1,13.10692787]
[1747749824860,0.8067,2478.3,2478.2,0.80669]
[1747749825162,0.8067,2478.3,2478.2,3.3112878]
[1747749825365,3.2078,2478.5,2478.2,6.5389528]
[1747749825566,0.80666,2478.5,2478.4,0.80664]
[1747749825858,0.80666,2478.5,2478.4,0.41936902]
[1747749826066,7.82405,2478.5,2478.4,0.12607122]
[1747749826368,7.82405,2478.5,2478.0,2.63e-06]
[1747749826369,0.80676,2478.1,2478.0,2.63e-06]
[1747749826659,4.01456,2478.1,2478.0,2.63e-06]
[1747749826966,3.2078,2478.1,2478.0,2.63e-06]
[1747749827174,4.01456,2478.1,2478.0,1.10055578]
[1747749827363,4.01456,2478.1,2478.0,0.29376578]
[1747749827659,6.032275,2478.1,2478.0,0.29376315]
[1747749827856,11.032275,2478.1,2478.0,0.29376315]
[1747749828057,0.80685,2477.8,2477.7,9.472]
[1747749828263,0.80685,2477.8,2477.7,9.76594718]
[1747749828564,2.82481,2477.8,2477.7,10.57283718]
[1747749828866,6.03261,2477.8,2477.7,0.29394718]
[1747749829965,0.80692,2477.6,2477.5,2.1763]
[1747749830158,0.80692,2477.6,2477.5,2.47047928]
[1747749830459,2.825045,2477.6,2477.5,2.47047928]
[1747749830667,2.825045,2477.6,2477.5,0.29417928]
[1747749830967,0.80698,2477.4,2477.3,9.472]
[1747749831165,0.80698,2477.4,2477.3,10.57318864]
[1747749831366,3.2078,2477.5,2477.4,0.80698]
[1747749831666,4.01475,2477.5,2477.4,3.27756774]
[1747749832061,3.2078,2477.5,2477.4,5.29577274]
[1747749832261,0.80693,2477.6,2477.5,0.80695]
[1747749832463,0.80691,2477.7,2477.6,0.80689]
[1747749832667,0.80691,2477.7,2477.6,0.29428774]
[1747749832861,6.03275,2477.7,2477.6,0.29428774]
[1747749833268,5.22584,2477.7,2477.6,0.2943639]